bitfinex/quotes_ETHUSD_20241203
["timestamp","ask_amount","ask_price","bid_price","bid_amount"]
[1733225607163,1.6352,3610.4,3610.3,3.82487359]
[1733225607714,2.20309733,3610.4,3610.3,3.82487359]
[1733225608244,2.42340706,3610.4,3610.3,3.82487359]
[1733225609055,1.85550973,3610.4,3610.3,3.82487359]
[1733225609827,0.56684382,3610.5,3610.3,3.82487359]
[1733225610082,1.6352,3610.8,3610.3,3.82487359]
[1733225610225,0.56305238,3610.9,3610.7,3.82487359]
[1733225610627,1.6352,3611.0,3610.7,3.82487359]
[1733225611923,1.6352,3611.0,3610.3,3.82487359]
[1733225612130,0.16352,3610.9,3610.3,3.82487359]
[1733225612771,0.54625725,3610.8,3610.3,3.82487359]
[1733225613142,0.54625725,3610.8,3610.4,0.2764]
[1733225613968,1.5097,3610.7,3610.4,0.2764]
[1733225614152,1.73164773,3610.7,3610.4,0.2764]
[1733225614337,1.5097,3610.7,3610.3,3.82487359]
[1733225615158,1.5097,3610.7,3609.9,0.2764]
[1733225615356,1.5097,3610.7,3609.5,3.82487359]
[1733225616539,0.54977027,3610.2,3609.9,3.82487359]
[1733225617075,1.5097,3610.7,3609.9,3.82487359]
[1733225617293,1.66067,3610.7,3609.9,3.82487359]
[1733225617788,2.21914128,3610.7,3609.9,3.82487359]
[1733225618637,2.06817128,3610.7,3609.9,3.82487359]
[1733225618983,1.5097,3610.7,3609.9,4.10127359]
[1733225619147,1.5097,3610.7,3610.3,3.82487359]
[1733225619881,0.56085435,3611.0,3610.3,3.82487359]
[1733225619882,0.56085435,3611.0,3610.4,0.55]
[1733225620046,0.56085435,3611.0,3610.3,3.82487359]
[1733225620248,0.77161978,3611.0,3610.3,3.82487359]
[1733225620670,0.21076543,3611.0,3610.3,3.82487359]
[1733225621277,2.11164462,3611.1,3610.4,0.2764]
[1733225621460,1.5468,3611.1,3610.4,0.2764]
[1733225621866,1.5191,3611.4,3610.7,3.82487359]
[1733225622189,1.5191,3611.4,3611.1,3.82487359]
[1733225623977,1.5871,3611.9,3611.1,3.82487359]
[1733225624133,0.21361392,3611.8,3611.1,3.82487359]
[1733225624541,0.21361392,3611.8,3611.5,3.82487359]
[1733225628488,1.5871,3611.9,3611.5,3.82487359]
[1733225628988,0.54903916,3612.0,3611.5,3.82487359]
[1733225629536,1.5369,3611.9,3611.1,3.82487359]
[1733225630190,1.5369,3611.9,3611.2,0.55]
[1733225630343,1.5369,3611.9,3611.1,3.82487359]
[1733225630546,0.20859392,3611.8,3611.1,3.82487359]
[1733225630749,1.5369,3611.9,3611.1,3.82487359]
[1733225631557,1.5369,3611.9,3610.6,1.5394]
[1733225631558,1.5369,3611.9,3611.5,3.82487359]
[1733225636359,1.5369,3611.9,3611.0,3.82487359]
[1733225638341,1.5369,3611.9,3611.1,0.2769]
[1733225639679,1.5369,3611.9,3611.4,3.82487359]
[1733225639901,0.20859392,3611.8,3611.4,3.82487359]
[1733225641574,0.20859392,3611.8,3611.5,3.01459902]
[1733225643620,1.5369,3611.9,3611.5,3.01459902]
[1733225644429,0.54903916,3612.0,3611.6,0.55]
[1733225644647,0.54903916,3612.0,3611.9,3.01459902]
[1733225645137,1.5127,3612.3,3611.9,3.01459902]
[1733225647115,0.55306534,3612.2,3611.9,3.01459902]
[1733225647311,0.75964187,3612.2,3611.9,3.01459902]
[1733225648146,0.55306534,3612.2,3612.0,0.2769]
[1733225648353,0.55306534,3612.2,3611.9,3.01459902]
[1733225653195,1.5099,3612.1,3611.0,0.2769]
[1733225654357,1.5099,3612.1,3610.9,3.01459902]
[1733225656096,1.5099,3612.1,3610.5,3.29149902]
[1733225656299,1.79849,3612.0,3610.5,3.29149902]
[1733225656684,0.54070976,3611.0,3610.5,3.29149902]
[1733225657022,4.36654915,3612.4,3610.5,3.29149902]
[1733225657023,1.6475,3611.3,3610.5,3.29149902]
[1733225657588,0.5413193,3611.1,3610.9,3.01459902]
[1733225658681,1.6475,3611.3,3610.9,3.01459902]
[1733225659284,0.16475,3611.2,3610.9,3.01459902]
[1733225661333,0.71199837,3611.2,3610.9,3.01459902]
[1733225663000,0.54724837,3611.2,3611.0,0.55]
[1733225663431,0.54724837,3611.2,3610.9,3.01459902]
[1733225668897,0.54724837,3611.2,3611.0,0.55]
[1733225669707,1.5493,3611.1,3610.9,3.01459902]
[1733225669915,1.75895484,3611.1,3610.9,3.01459902]
[1733225670639,0.20965484,3611.1,3610.9,3.01459902]
[1733225670808,0.54724837,3611.2,3610.9,3.01459902]
[1733225671553,0.54724837,3611.2,3611.0,0.55]
[1733225678468,2.10844837,3611.2,3611.0,0.55]
[1733225679265,0.54724837,3611.2,3611.0,0.55]
[1733225682110,0.54724837,3611.2,3610.9,3.01459902]
[1733225683068,1.5797,3611.1,3610.5,3.01459902]
[1733225683312,1.79239484,3611.1,3610.6,0.55]
[1733225683866,1.79239484,3611.1,3610.3,0.2769]
[1733225684072,1.79239484,3611.1,3610.1,3.01459902]
[1733225685911,1.79239484,3611.1,3610.2,0.55]
[1733225687169,1.79239484,3611.1,3609.7,3.29149902]
[1733225687395,0.56092891,3610.3,3609.7,3.29149902]
[1733225687602,1.5106,3610.2,3609.7,3.29149902]
[1733225688425,0.56092891,3610.3,3610.1,3.01459902]
[1733225690941,0.56092891,3610.3,3610.2,0.55]
[1733225694568,0.56092891,3610.3,3610.1,3.01459902]
[1733225695428,0.56092891,3610.3,3610.2,0.55]
[1733225696569,0.56092891,3610.3,3610.1,3.01459902]
[1733225698073,0.56092891,3610.3,3610.2,0.55]
[1733225700173,0.56092891,3610.3,3610.1,3.01459902]
[1733225700522,1.5894,3610.2,3609.3,3.01459902]
[1733225700726,1.5894,3610.0,3609.2,0.2769]
[1733225700971,1.5894,3610.0,3608.9,3.01459902]
[1733225701531,1.5894,3610.0,3608.5,3.29149902]
[1733225702771,1.5894,3610.0,3608.9,3.01459902]
[1733225703176,1.5894,3610.0,3609.3,3.01459902]
[1733225703384,1.5894,3610.0,3609.8,0.55]
[1733225704283,2.14129612,3610.0,3609.4,0.55]
[1733225707034,1.5505,3609.9,3608.6,3.01459902]
[1733225709891,1.5505,3609.9,3608.7,0.55]
[1733225710093,1.6065,3609.7,3608.7,0.55]
[1733225710651,0.55976469,3608.8,3608.7,0.55]
[1733225710850,1.6065,3608.7,3607.0,0.2769]
[1733225711045,1.6065,3608.7,3607.1,3.29149902]
[1733225711249,1.84342647,3608.6,3607.1,3.29149902]
[1733225711500,1.6268,3608.6,3607.1,3.29149902]
[1733225711651,1.6268,3608.6,3607.1,0.2769]
[1733225712162,1.6268,3608.6,3607.1,3.29149902]
[1733225712495,1.6268,3608.6,3607.1,3.01459902]
[1733225712698,1.5823,3608.4,3607.1,3.01459902]
[1733225713261,1.5823,3608.4,3607.2,0.55]
[1733225714349,1.5823,3608.4,3607.1,3.01459902]
[1733225714847,1.5823,3608.4,3606.4,0.28872038]
[1733225714848,1.6621,3607.4,3606.2,4.64319902]
[1733225715074,0.22104432,3607.3,3606.2,3.01459902]
[1733225715427,1.6621,3607.4,3606.2,3.01459902]
[1733225715713,1.6621,3607.4,3605.8,3.01459902]
[1733225716134,1.6621,3607.4,3606.2,3.01459902]
[1733225716425,1.6621,3607.4,3606.2,4.65429902]
[1733225716579,0.22104432,3607.3,3606.2,4.65429902]
[1733225716774,0.55899173,3606.5,3606.3,0.55]
[1733225718995,0.22104432,3607.3,3606.3,0.55]
[1733225719607,0.22104432,3607.3,3606.6,3.01459902]
[1733225720115,0.56598121,3606.9,3606.6,3.01459902]
[1733225723821,0.56598121,3606.9,3606.8,2.0712]
[1733225724020,1.5717,3607.7,3606.9,0.55]
[1733225724320,0.15717,3607.6,3607.0,3.01459902]
[1733225724675,1.5717,3607.7,3607.4,3.01459902]
[1733225725404,1.5183,3609.2,3607.4,3.01459902]
[1733225725619,1.5183,3609.2,3607.5,0.55]
[1733225725828,1.5183,3609.2,3607.8,3.01459902]
[1733225726117,1.5183,3609.2,3608.2,3.01459902]
[1733225726324,0.15183,3609.1,3607.8,3.01459902]
[1733225726583,1.5671,3608.2,3607.5,0.55]
[1733225727162,0.54330097,3608.3,3607.8,3.01459902]
[1733225727855,0.54330097,3608.3,3608.2,3.01459902]
[1733225728738,0.54330097,3608.3,3608.2,3.56459902]
[1733225730178,1.5173,3609.3,3608.3,0.55]
[1733225730381,0.15173,3609.2,3608.7,0.55]
[1733225731591,1.5231,3609.1,3608.3,0.55]
[1733225731803,0.55751215,3608.8,3608.3,0.55]
[1733225732303,0.04555423,3608.7,3608.3,0.55]
[1733225732454,1.6212,3608.6,3608.3,0.55]
[1733225732769,0.2657487,3608.5,3608.3,0.55]
[1733225733093,0.2657487,3608.5,3607.8,3.01459902]
[1733225733395,1.6212,3608.4,3607.8,3.01459902]
[1733225733571,1.66472698,3608.4,3607.8,3.01459902]
[1733225733927,1.66472698,3608.4,3607.4,3.01459902]
[1733225734081,0.18871536,3608.3,3607.4,3.01459902]
[1733225734283,0.18871536,3608.3,3607.5,0.2769]
[1733225734488,0.0426417,3608.2,3607.5,0.2769]
[1733225734655,1.6212,3608.1,3607.5,0.2769]
[1733225735003,0.04252079,3608.0,3607.6,0.55]
[1733225735170,0.16637208,3607.9,3607.6,0.55]
[1733225735368,0.56343182,3607.8,3607.6,0.55]
[1733225735579,0.60583168,3607.8,3607.6,0.55]
[1733225736387,1.109124,3607.7,3607.6,0.55]
[1733225736585,1.15116482,3607.7,3607.5,0.55]
[1733225736786,0.18813278,3607.6,3607.5,0.55]
[1733225736983,0.23011313,3607.6,3607.5,0.55]
[1733225737919,0.04198035,3607.6,3607.5,0.55]
[1733225739027,0.04198035,3607.6,3607.5,0.8269]
[1733225739471,1.109124,3607.7,3607.5,0.8269]
[1733225740191,1.109124,3607.7,3607.4,3.01459902]
[1733225740192,1.5722,3608.5,3607.8,0.2769]
[1733225740394,0.5655946,3608.8,3608.5,0.55]
[1733225741009,1.108849,3608.7,3608.5,0.55]
[1733225742107,1.108849,3608.7,3608.5,0.54684261]
[1733225743148,1.6356,3608.6,3608.0,3.01459902]
[1733225743443,0.33100436,3608.5,3608.0,3.01459902]
[1733225743641,0.37129682,3608.5,3608.0,3.01459902]
[1733225743998,1.633,3608.4,3607.6,3.01459902]
[1733225744199,1.67323203,3608.4,3607.6,3.01459902]
[1733225744464,1.5974,3608.2,3607.6,3.01459902]
[1733225744600,1.2974,3608.2,3607.7,0.55]
[1733225744798,0.04009434,3608.1,3607.7,0.55]
[1733225746175,0.04009434,3608.1,3607.6,3.01459902]
[1733225746485,0.04009434,3608.1,3607.7,0.55]
[1733225746638,0.1537918,3608.0,3607.7,0.55]
[1733225746973,0.03821055,3607.9,3607.7,0.55]
[1733225747473,0.58712987,3607.9,3607.7,0.55]
[1733225747976,0.58712987,3607.9,3607.7,2.155]
[1733225748273,0.03821055,3607.9,3607.8,3.56459902]
[1733225748483,0.03821055,3607.9,3607.8,1.7280098]
[1733225748777,1.108849,3608.7,3607.9,0.8269]
[1733225749077,1.108849,3608.7,3608.3,0.55]
[1733225749536,0.5569623,3608.4,3608.3,0.55]
[1733225749731,0.5569623,3608.4,3608.2,3.29149902]
[1733225750046,0.72354343,3608.4,3608.2,3.29149902]
[1733225750647,0.72354343,3608.4,3608.2,3.01459902]
[1733225751235,0.03683867,3608.3,3608.2,3.01459902]
[1733225751840,0.03683867,3608.3,3608.2,3.56459902]
[1733225752185,0.5569623,3608.4,3608.2,3.56459902]
[1733225752390,0.5569623,3608.4,3608.3,0.55]
[1733225754752,0.59265994,3608.4,3608.3,0.55]
[1733225754950,0.76281083,3608.4,3608.3,0.55]
[1733225756404,0.76281083,3608.4,3608.2,3.01459902]
[1733225756600,0.76281083,3608.4,3608.3,0.55]
[1733225758455,0.59265994,3608.4,3608.3,0.55]
[1733225758858,0.5569623,3608.4,3608.3,1.796]
[1733225759054,0.59146349,3608.4,3608.3,1.796]
[1733225761167,0.59146349,3608.4,3608.3,2.0729]
[1733225761403,0.59146349,3608.4,3608.3,2.5816499]
[1733225761605,0.5569623,3608.4,3608.3,2.5816499]
[1733225762575,1.108849,3608.7,3608.3,2.0729]
[1733225762809,1.108849,3608.7,3608.6,3.84149902]
[1733225763110,0.78784013,3610.2,3608.6,3.84149902]
[1733225763111,1.5782,3609.9,3608.6,5.08749902]
[1733225763312,1.5782,3609.9,3608.9,0.8269]
[1733225763580,1.108586,3609.3,3608.9,0.8269]
[1733225764039,0.02687257,3609.2,3608.9,0.8269]
[1733225764205,1.108586,3609.3,3608.9,0.8269]
[1733225764417,1.108586,3609.3,3609.2,0.55]
[1733225764773,2.741886,3609.3,3608.7,3.01459902]
[1733225765000,0.2741886,3609.2,3608.7,3.01459902]
[1733225765674,1.62780887,3609.1,3608.7,3.01459902]
[1733225766280,1.62780887,3609.1,3608.4,0.2769]
[1733225766908,1.62780887,3609.1,3608.5,0.8269]
[1733225767421,1.62780887,3609.1,3608.7,3.01459902]
[1733225767581,0.30105835,3609.0,3608.8,0.55]
[1733225768213,0.02577178,3608.9,3608.8,0.55]
[1733225768522,0.58097461,3608.9,3608.8,0.55]
[1733225768924,0.58097461,3608.9,3608.3,3.01459902]
[1733225769093,1.6506,3608.8,3608.3,3.01459902]
[1733225769292,0.2532633,3608.7,3608.3,3.01459902]
[1733225769631,0.27873025,3608.7,3608.3,3.01459902]
[1733225770921,0.27873025,3608.7,3608.4,0.55]
[1733225772221,0.02546695,3608.7,3608.4,0.55]
[1733225772402,1.6506,3608.8,3608.5,0.2769]
[1733225772609,0.02527097,3608.7,3608.6,0.2769]
[1733225772810,1.6506,3608.8,3608.6,0.2769]
[1733225773033,0.02527097,3608.7,3608.6,0.8269]
[1733225773346,0.25321322,3608.7,3608.6,3.56459902]
[1733225773546,0.27832564,3608.7,3608.6,3.56459902]
[1733225775232,0.02511242,3608.7,3608.6,3.56459902]
[1733225775450,1.5336,3608.7,3607.2,1.246]
[1733225775609,0.55520283,3608.9,3607.2,1.246]
[1733225775610,0.02630195,3608.6,3607.3,3.01459902]
[1733225775805,1.5336,3608.5,3607.3,3.01459902]
[1733225776041,1.5336,3608.3,3607.3,3.01459902]
[1733225776355,1.56395027,3608.3,3607.3,3.01459902]
[1733225776808,1.5336,3608.3,3607.3,3.01459902]
[1733225777445,1.5336,3608.3,3607.4,0.55]
[1733225778808,2.08014292,3607.5,3607.4,0.55]
[1733225779124,2.28815721,3607.5,3607.4,0.55]
[1733225779322,2.28815721,3607.5,3607.0,0.55]
[1733225781055,2.28815721,3607.5,3606.5,3.91459081]
[1733225781208,2.28815721,3607.5,3606.5,3.29149902]
[1733225781561,1.54,3607.3,3606.1,3.01459902]
[1733225781719,1.54,3607.3,3606.1,3.36949064]
[1733225782045,1.54,3607.3,3606.1,3.01459902]
[1733225782266,1.54,3607.3,3606.1,3.29149902]
[1733225782710,0.54326205,3606.3,3606.1,3.29149902]
[1733225782943,0.54326205,3606.3,3605.7,3.01459902]
[1733225783351,0.54326205,3606.3,3605.5,3.01459902]
[1733225783686,1.5342,3606.2,3605.5,3.36977315]
[1733225783847,0.20774621,3606.1,3605.5,3.36977315]
[1733225785486,1.5342,3606.5,3606.0,0.55]
[1733225786185,1.5342,3606.5,3606.3,3.01459902]
[1733225786391,0.22881572,3607.4,3606.3,3.01459902]
[1733225786392,1.5342,3606.9,3606.4,0.55]
[1733225787449,0.54703471,3606.5,3606.4,0.55]
[1733225788458,1.5342,3606.9,3606.4,0.55]
[1733225788848,1.5342,3606.9,3605.9,0.35313598]
[1733225788849,0.5638187,3606.7,3605.9,3.01459902]
[1733225789100,1.562,3606.6,3605.9,3.01459902]
[1733225789276,0.21258187,3606.5,3605.9,3.01459902]
[1733225789998,0.5638187,3606.7,3606.3,3.91449902]
[1733225790146,1.562,3607.0,3606.3,3.91449902]
[1733225790710,0.56836876,3606.8,3606.7,3.01459902]
[1733225790917,1.562,3607.9,3606.7,3.01459902]
[1733225790918,1.562,3607.9,3606.8,0.55]
[1733225791070,0.54861485,3607.0,3606.8,0.55]
[1733225791578,1.562,3607.9,3606.8,0.55]
[1733225791765,0.23504208,3607.8,3606.8,0.55]
[1733225792104,0.56348577,3606.9,3606.8,0.55]
[1733225793605,1.5165,3607.7,3606.8,0.55]
[1733225793810,1.7165,3607.7,3605.6,0.8999]
[1733225794013,0.33504208,3607.8,3604.2,0.1]
[1733225794014,1.621,3607.3,3605.3,3.01459902]
[1733225794165,0.64195623,3607.4,3605.2,0.8999]
[1733225794166,0.2,3607.1,3605.2,0.8999]
[1733225794500,1.621,3606.3,3605.2,0.8999]
[1733225794701,0.56252079,3605.3,3605.2,0.8999]
[1733225795012,0.56252079,3605.3,3605.1,3.01459902]
[1733225795361,0.56252079,3605.3,3605.0,3.01459902]
[1733225795567,0.56252079,3605.3,3605.1,0.55]
[1733225796279,1.621,3606.0,3605.1,0.55]
[1733225796467,0.1621,3605.9,3605.1,0.55]
[1733225796818,1.5695,3606.7,3605.8,3.01459902]
[1733225796965,1.5695,3606.7,3605.9,0.55]
[1733225797601,0.56313102,3606.1,3605.9,0.55]
[1733225798225,1.5695,3606.7,3605.9,0.55]
[1733225798434,0.5561966,3606.4,3605.9,0.55]
[1733225799401,1.5695,3606.7,3605.9,0.55]
[1733225799602,0.15695,3606.6,3605.9,0.55]
[1733225800887,0.54565627,3606.7,3605.9,0.55]
[1733225802391,0.54565627,3606.7,3606.5,3.01459902]
[1733225802733,0.54565627,3606.7,3606.6,0.55]
[1733225803836,0.54565627,3606.7,3606.1,3.01459902]
[1733225804149,0.54565627,3606.7,3606.5,3.01459902]
[1733225804288,0.23504208,3607.8,3606.6,0.3014599]
[1733225804289,1.6025,3607.6,3606.6,0.3014599]
[1733225804484,1.6025,3607.6,3607.0,3.01459902]
[1733225805101,1.6025,3607.6,3607.1,0.55]
[1733225805302,0.54910447,3607.7,3607.1,0.55]
[1733225805502,0.54910447,3607.7,3607.5,0.55]
[1733225809873,0.54910447,3607.7,3607.6,3.56459902]
[1733225810229,1.6034,3608.3,3607.6,3.56459902]
[1733225810465,0.23917967,3608.2,3607.6,3.56459902]
[1733225810675,0.78839667,3608.5,3608.0,3.01459902]
[1733225811751,0.78839667,3608.5,3608.4,3.01459902]
[1733225811953,1.5533,3609.0,3608.5,0.55]
[1733225812336,0.54433012,3608.6,3608.5,0.55]
[1733225812680,0.54433012,3608.6,3608.5,3.56459902]
[1733225813069,2.70655468,3610.0,3608.5,3.92105892]
[1733225813268,1.5533,3610.0,3609.5,3.01459902]
[1733225813873,1.5533,3610.6,3609.6,3.01459902]
[1733225814079,1.108424,3610.1,3609.6,3.01459902]
[1733225814244,1.5533,3610.6,3608.5,0.02142823]
[1733225814245,0.56252253,3609.7,3609.2,3.01459902]
[1733225814443,0.56252253,3609.7,3609.6,3.01459902]
[1733225815193,1.108333,3610.4,3609.6,3.01459902]
[1733225815487,0.2661633,3610.3,3609.6,3.01459902]
[1733225815779,0.2661633,3610.3,3609.7,3.82014675]
[1733225815978,0.2661633,3610.3,3609.8,0.55]
[1733225816797,0.54741276,3610.0,3609.8,0.55]
[1733225817770,0.2661633,3610.3,3609.8,0.55]
[1733225817969,0.56371372,3610.1,3609.8,0.55]
[1733225818488,2.722125,3611.1,3609.8,0.55]
[1733225818642,0.2722125,3611.0,3610.5,3.82014675]
[1733225818842,0.2722125,3611.0,3610.6,0.55]
[1733225819459,0.81707477,3611.0,3610.5,0.39954848]
[1733225819656,0.2722125,3611.0,3610.5,0.39954848]
[1733225819979,1.108125,3611.1,3610.5,0.39954848]
[1733225820310,0.55434344,3611.3,3610.5,0.39954848]
[1733225820606,0.55434344,3611.3,3609.7,3.82014675]
[1733225820607,2.80914129,3611.2,3609.7,3.82014675]
[1733225820753,2.80914129,3611.2,3606.8,5.0]
[1733225820754,0.95318113,3611.1,3610.1,3.82014675]
[1733225820963,2.77452218,3611.2,3609.1,0.3]
[1733225820964,1.6221,3611.2,3610.5,3.82014675]
[1733225821399,1.6221,3611.2,3610.6,0.55]
[1733225821605,0.29221835,3611.1,3610.6,0.55]
[1733225822304,0.02689302,3611.0,3610.6,0.55]
[1733225822656,0.02689302,3611.0,3610.5,3.82014675]
[1733225822861,0.03461916,3611.0,3610.6,0.55]
[1733225823056,0.03461918,3611.2,3610.1,3.82014675]
[1733225823301,1.5813,3611.1,3610.2,0.55]
[1733225823595,0.21702626,3611.0,3610.2,0.55]
[1733225823961,0.25164702,3611.0,3610.2,0.55]
[1733225824364,1.5813,3610.9,3609.7,3.82014675]
[1733225824602,1.61592485,3610.9,3609.7,3.82014675]
[1733225824798,1.61592485,3610.9,3609.3,3.82014675]
[1733225825009,1.5813,3610.7,3609.3,3.82014675]
[1733225825164,1.57052939,3610.6,3609.3,3.82014675]
[1733225825671,0.54354392,3610.4,3609.3,3.82014675]
[1733225826365,0.54354392,3610.4,3609.4,0.55]
[1733225826562,0.03462701,3610.3,3609.4,0.55]
[1733225827091,0.54354392,3610.4,3609.4,0.55]
[1733225827260,0.20794439,3610.3,3609.4,0.55]
[1733225827683,1.5675,3610.2,3609.4,0.55]
[1733225827881,0.03462917,3610.1,3609.4,0.55]
[1733225828093,1.5675,3610.2,3609.4,0.55]
[1733225828484,1.60212915,3610.2,3609.4,0.55]
[1733225828686,0.23536175,3610.1,3609.4,0.55]
[1733225830027,1.5482,3610.0,3609.4,0.55]
[1733225830797,1.5482,3610.0,3608.6,0.55]
[1733225830999,0.55144235,3609.7,3608.6,0.55]
[1733225831719,0.03463316,3609.6,3608.6,0.55]
[1733225831954,0.55144235,3609.7,3608.6,0.55]
[1733225832954,1.5272,3609.6,3608.5,0.36190742]
[1733225833257,1.5272,3609.4,3607.4,3.82014675]
[1733225833460,1.6046,3609.2,3607.4,3.82014675]
[1733225833670,0.20786424,3609.5,3607.0,3.82014675]
[1733225833671,1.6046,3609.0,3607.0,3.82014675]
[1733225833813,0.55792074,3607.5,3607.0,3.82014675]
[1733225834352,1.6046,3608.0,3607.0,3.82014675]
[1733225834862,1.6046,3608.0,3607.1,0.55]
[1733225835844,0.16392457,3608.9,3607.4,3.82014675]
[1733225836069,0.20786424,3609.5,3607.4,3.82014675]
[1733225836070,0.56474359,3608.0,3607.5,0.55]
[1733225836360,0.1,3609.8,3607.5,0.55]
[1733225836532,0.03464236,3609.7,3607.5,0.55]
[1733225836738,0.55864185,3608.1,3607.5,0.55]
[1733225839244,0.55864185,3608.1,3607.2,0.0554]
[1733225840495,0.55864185,3608.1,3607.3,0.55]
[1733225840851,0.55864185,3608.1,3607.4,3.82014675]
[1733225841048,0.55864185,3608.1,3607.5,0.55]
[1733225841945,0.55864185,3608.1,3607.3,0.55]
[1733225842492,1.6028,3608.0,3607.3,0.55]
[1733225842687,0.21614419,3607.9,3607.3,0.55]
[1733225843211,0.21614419,3607.9,3607.5,0.55]
[1733225843392,0.55864185,3608.1,3607.3,0.55]
[1733225843393,0.54204185,3608.1,3607.3,0.55]
[1733225845262,0.54204185,3608.1,3607.1,0.63941146]
[1733225845574,1.18145285,3608.1,3607.2,3.02160876]
[1733225845752,0.54204185,3608.1,3607.2,3.02160876]
[1733225846852,0.54204185,3608.1,3607.3,0.55]
[1733225847087,0.21448419,3608.0,3607.3,0.55]
[1733225848034,0.54204185,3608.1,3607.3,0.55]
[1733225848200,0.48664185,3608.1,3607.5,0.55]
[1733225848606,0.48664185,3608.1,3607.3,0.55]
[1733225848805,0.48664185,3608.1,3607.3,3.55]
[1733225848993,0.20894419,3608.0,3607.3,3.55]
[1733225850699,1.65904639,3607.9,3606.3,0.34422429]
[1733225850925,1.65904639,3607.9,3606.3,0.28882429]
[1733225851130,1.6244,3607.6,3606.3,0.28882429]
[1733225851335,1.65905585,3607.6,3606.1,0.0554]
[1733225851635,1.79030559,3607.5,3606.1,0.0554]
[1733225851817,0.54551354,3607.0,3606.1,0.0554]
[1733225852016,1.6244,3606.9,3606.1,0.0554]
[1733225852405,1.6244,3606.9,3606.0,3.02160876]
[1733225852609,1.6244,3606.9,3606.1,3.0]
[1733225852822,0.16244,3606.9,3606.5,3.0]
[1733225853028,0.16244,3606.9,3606.1,3.2769]
[1733225853537,0.54678222,3606.9,3606.5,0.2769]
[1733225853831,0.54678222,3606.9,3606.6,0.8269]
[1733225856932,0.54678222,3606.9,3606.4,0.8269]
[1733225857547,1.0703244,3608.1,3607.1,3.0]
[1733225857734,3.02160876,3608.2,3608.1,5.77154]
[1733225857919,3.32376964,3608.2,3608.1,5.77154]
[1733225858280,4.99386439,3608.2,3608.1,5.77154]
[1733225858451,0.83748439,3608.4,3608.3,2.77138]
[1733225858651,0.83748439,3608.4,3608.3,5.77138]
[1733225858818,0.83748439,3608.4,3608.3,2.21087346]
[1733225859144,1.94665139,3608.4,3608.3,2.21087346]
[1733225859346,0.4453539,3608.4,3608.3,2.21087346]
[1733225859508,3.89149872,3608.9,3608.6,3.0]
[1733225859710,3.79149872,3608.9,3608.6,3.0]
[1733225859908,4.90059372,3608.9,3608.8,5.771]
[1733225860104,9.44997232,3608.9,3608.8,5.771]
[1733225860304,7.23158955,3608.9,3608.8,5.771]
[1733225860507,4.36066955,3608.9,3608.6,3.0]
[1733225860753,1.54100968,3608.8,3608.6,3.0]
[1733225861144,1.54100968,3608.8,3608.7,2.77108]
[1733225861444,4.56280876,3608.8,3608.7,3.0]
[1733225861605,1.5412,3608.7,3608.6,5.21048198]
[1733225862250,1.5412,3608.7,3608.6,2.77115]
[1733225862413,1.5412,3608.7,3608.3,2.21087346]
[1733225862612,1.5412,3608.7,3607.9,2.77165]
[1733225862812,1.5412,3608.7,3608.6,2.77115]
[1733225863110,2.70007161,3608.7,3608.6,2.77115]
[1733225863720,1.61e-06,3608.7,3608.6,2.77115]
[1733225864021,0.25061037,3608.8,3608.7,2.77108]
[1733225864221,1.23721232,3608.9,3608.6,2.77115]
[1733225864446,1.10911,3609.2,3609.1,2.77077]
[1733225864652,1.52218188,3609.2,3609.1,2.77077]
[1733225865609,0.13683188,3609.2,3609.1,2.77077]
[1733225865882,1.72863327,3610.0,3609.9,2.77015]
[1733225865883,8.93,3610.0,3609.9,2.77015]
[1733225866040,14.34529254,3610.0,3609.9,2.77015]
[1733225866244,3.79139049,3610.0,3609.7,2.77031]
[1733225866545,0.37913905,3609.9,3609.8,2.77023]
[1733225867102,2.01053905,3609.9,3609.8,2.77023]
[1733225867371,6.01053905,3609.9,3609.8,2.77023]
[1733225867569,1.85529905,3609.9,3609.8,2.77023]
[1733225867733,1.31927038,3610.0,3609.9,2.77015]
[1733225867933,1.75335829,3610.0,3609.9,2.77015]
[1733225868985,1.31927038,3610.0,3609.9,2.77015]
[1733225869562,0.54948865,3610.0,3609.9,2.77015]
[1733225870649,2.07848865,3610.0,3609.9,2.77015]
[1733225871171,8.65e-06,3610.0,3609.9,2.77015]
[1733225871346,8.65e-06,3610.0,3609.9,5.77015]
[1733225872379,3.5e-06,3610.0,3609.9,5.77015]
[1733225875555,8.37e-06,3610.0,3609.9,5.77015]
[1733225878282,1.108584,3611.5,3610.0,3.0]
[1733225878447,1.108584,3611.5,3609.9,5.79175876]
[1733225878448,1.108584,3611.5,3611.4,2.769]
[1733225878630,14.038584,3611.5,3611.4,2.769]
[1733225878834,12.93,3611.5,3611.1,2.76917]
[1733225879078,8.93,3611.5,3611.1,2.76917]
[1733225879233,8.93,3611.5,3611.4,2.769]
[1733225879436,10.52741098,3611.5,3611.4,2.769]
[1733225880682,10.52741098,3611.5,3609.6,0.09999768]
[1733225880683,13.99698193,3611.5,3610.6,2.203826]
[1733225880837,3.02160876,3611.2,3610.5,2.76969]
[1733225881039,0.30216088,3611.1,3611.0,2.76931]
[1733225881276,0.30216088,3611.1,3610.5,2.76969]
[1733225881277,0.30216088,3611.1,3610.7,2.76954]
[1733225881588,0.30216088,3611.1,3611.0,2.76931]
[1733225882840,0.30216088,3611.1,3610.7,2.76954]
[1733225883082,0.62377696,3611.0,3610.9,2.76939]
[1733225883283,0.30216088,3611.1,3610.7,2.76954]
[1733225883284,7.84e-06,3611.1,3611.0,2.76931]
[1733225883453,0.55557095,3611.5,3611.4,2.769]
[1733225883790,6.16114,3611.6,3611.5,2.76893]
[1733225883995,1.108501,3611.7,3611.6,2.76885]
[1733225884138,5.93560876,3612.4,3612.3,2.76831]
[1733225884345,4.51961623,3612.4,3612.3,2.76831]
[1733225884721,5.49800747,3612.4,3612.3,2.76831]
[1733225884853,4.51961623,3612.4,3612.3,2.76831]
[1733225885058,7.43361623,3612.4,3612.3,2.76831]
[1733225885255,7.43361623,3612.4,3611.4,5.769]
[1733225885583,3.02160876,3612.0,3611.0,2.76926]